bitfinex/quotes_ETHUSD_20250106
["timestamp","ask_amount","ask_price","bid_price","bid_amount"]
[1736200085974,2.72094,3675.2,3674.6,0.55]
[1736200086263,2.72094,3675.2,3674.5,0.4131]
[1736200086635,2.60188418,3675.4,3675.1,35.0]
[1736200086836,2.72067,3675.6,3675.1,35.0]
[1736200087041,0.25226393,3675.3,3675.0,0.5881]
[1736200087253,0.65588622,3675.3,3675.0,0.5881]
[1736200087454,0.65588622,3675.3,3675.2,35.0]
[1736200087648,0.65588622,3675.3,3675.2,35.3981]
[1736200087831,0.40362229,3675.6,3675.2,35.3981]
[1736200088026,0.40362229,3675.6,3675.2,0.3981]
[1736200088462,0.40362229,3675.8,3675.5,35.9481]
[1736200088934,0.40362229,3675.8,3675.6,0.55]
[1736200089172,0.40362229,3675.8,3675.7,0.015]
[1736200089531,0.2522664,3675.8,3675.7,0.015]
[1736200089981,0.2522664,3675.8,3675.7,0.9631]
[1736200092740,2.60188418,3676.6,3675.8,0.55]
[1736200092980,2.72029,3676.1,3675.9,0.19]
[1736200093571,0.65472857,3676.0,3675.9,0.19]
[1736200094990,0.25181868,3676.0,3675.9,0.19]
[1736200095687,0.65460754,3676.2,3675.9,0.19]
[1736200096488,0.25181868,3676.1,3675.9,0.19]
[1736200097084,0.25181868,3676.0,3675.9,0.19]
[1736200097692,2.71997,3676.5,3675.9,0.19]
[1736200097990,4.02304542,3676.4,3675.9,0.19]
[1736200098346,4.67750786,3676.4,3675.9,0.19]
[1736200098588,0.65446244,3676.4,3675.9,0.19]
[1736200098977,0.25171632,3676.3,3675.9,0.19]
[1736200099799,0.65464744,3676.5,3675.9,0.19]
[1736200100189,2.72017,3676.3,3675.9,0.19]
[1736200100386,2.97193632,3676.2,3675.9,0.19]
[1736200100797,2.97193632,3676.2,3676.0,0.19]
[1736200100798,3.49107,3676.1,3676.0,0.19]
[1736200100997,3.74278632,3676.1,3676.0,0.19]
[1736200103322,2.97198632,3676.1,3676.0,0.19]
[1736200104001,0.25171632,3676.1,3676.0,0.19]
[1736200105523,6.25069465,3676.1,3675.9,0.19]
[1736200105729,2.72034,3676.0,3675.9,0.19]
[1736200106213,0.7808,3675.9,3674.9,0.54425136]
[1736200106512,2.60188418,3675.6,3675.0,0.19]
[1736200106906,0.25171632,3675.5,3675.0,0.19]
[1736200107441,0.25171632,3675.4,3675.0,0.19]
[1736200108145,0.25171632,3675.5,3675.0,0.19]
[1736200108708,0.25171632,3675.4,3675.0,0.19]
[1736200109645,0.25171632,3675.3,3675.0,0.19]
[1736200110405,0.25171632,3675.2,3675.0,0.19]
[1736200111129,0.25171632,3675.4,3675.0,0.19]
[1736200111290,0.25171632,3675.4,3675.1,0.565]
[1736200111856,0.25171632,3675.3,3675.1,0.565]
[1736200112695,0.40339845,3675.7,3675.1,0.565]
[1736200113450,0.40339845,3675.7,3675.6,0.3981]
[1736200113737,2.72014,3676.3,3675.6,0.3981]
[1736200113934,3.44988714,3676.3,3675.6,0.3981]
[1736200114148,0.8172,3676.1,3675.2,0.3981]
[1736200114295,5.32233418,3675.9,3675.7,0.19]
[1736200114496,5.32233418,3675.9,3675.6,0.19]
[1736200114728,0.65654403,3675.8,3675.6,0.19]
[1736200115545,0.65654403,3675.7,3675.6,0.5881]
[1736200116059,0.25251693,3675.7,3675.6,1.1381]
[1736200116252,0.25251693,3675.7,3675.6,1.523985]
[1736200117197,0.25251693,3675.7,3675.6,4.244625]
[1736200117796,0.25251693,3675.7,3675.6,4.259625]
[1736200118095,0.4040271,3676.4,3675.8,2.72049]
[1736200119046,0.65678964,3676.3,3675.8,2.72049]
[1736200119247,0.65678964,3676.3,3675.8,3.35965893]
[1736200119425,0.65678964,3676.2,3675.8,3.35965893]
[1736200120113,0.25276254,3676.1,3675.8,0.63916893]
[1736200121201,0.25276254,3676.0,3675.8,0.63916893]
[1736200121404,0.25276254,3676.0,3675.8,0.55]
[1736200121747,0.25276254,3675.9,3675.8,0.55]
[1736200121947,0.25276254,3675.9,3675.8,6.27049]
[1736200122342,0.25276254,3675.9,3675.8,6.66859]
[1736200123681,2.63588498,3676.8,3675.9,0.3981]
[1736200123885,6.07901418,3677.1,3676.1,2.72025]
[1736200124199,2.60188418,3676.8,3676.2,0.3981]
[1736200124999,0.65712211,3676.7,3676.3,0.55]
[1736200125362,0.65712211,3676.6,3676.3,0.55]
[1736200126173,0.65712211,3676.5,3676.3,0.55]
[1736200126903,0.25273927,3676.4,3676.3,0.55]
[1736200134305,0.65712211,3676.8,3676.3,0.55]
[1736200134605,0.65712211,3676.8,3676.3,3.27011]
[1736200135099,0.25273927,3676.7,3676.3,3.27011]
[1736200135459,0.25273927,3676.7,3676.3,0.55]
[1736200136110,0.25273927,3676.6,3676.3,0.55]
[1736200136529,0.25273927,3676.5,3676.3,0.55]
[1736200136998,3.39347979,3677.1,3676.3,0.55]
[1736200137198,0.61129498,3677.0,3676.3,0.55]
[1736200137730,0.65697313,3676.9,3676.3,0.55]
[1736200138327,0.65697313,3676.8,3676.3,0.55]
[1736200139129,0.25268197,3676.7,3676.3,0.55]
[1736200140039,0.25268197,3676.6,3676.3,0.55]
[1736200140219,0.25268197,3676.6,3676.5,35.565]
[1736200141394,0.25268197,3676.6,3676.5,35.0]
[1736200142386,0.65697313,3676.6,3676.5,41.69057]
[1736200143223,0.65697313,3677.3,3677.0,0.0075]
[1736200143393,0.65697313,3677.3,3677.1,0.0075]
[1736200143843,0.25268197,3677.2,3677.1,0.0075]
[1736200144414,0.25268197,3677.2,3677.1,35.565]
[1736200145146,0.25268197,3677.6,3677.2,0.55]
[1736200145311,0.25268197,3677.6,3677.3,0.19]
[1736200145829,0.25268197,3677.6,3677.5,35.0]
[1736200145994,2.60188418,3677.7,3677.5,35.0]
[1736200146196,2.60188418,3677.7,3677.3,0.19]
[1736200146627,0.65831329,3677.6,3677.3,0.19]
[1736200147139,0.65831329,3677.6,3677.5,35.0]
[1736200147296,2.60188418,3677.7,3677.5,35.0]
[1736200147492,2.60188418,3677.7,3677.3,0.19]
[1736200148042,0.65807659,3677.6,3677.3,0.19]
[1736200148639,0.65807659,3677.6,3677.5,35.0]
[1736200148640,3.83224864,3677.6,3677.5,35.0]
[1736200148851,3.96461856,3677.6,3677.5,35.0]
[1736200149030,3.93063021,3677.6,3677.5,35.0]
[1736200149344,4.18375308,3677.6,3677.5,35.0]
[1736200150326,6.78563726,3677.6,3677.5,35.0]
[1736200150494,7.73949812,3677.6,3677.5,35.0]
[1736200150695,2.71944,3677.3,3676.9,0.19]
[1736200150942,2.60188418,3677.1,3676.9,0.19]
[1736200151141,2.60188418,3677.1,3676.4,0.93362292]
[1736200151345,0.81,3677.0,3676.8,0.19]
[1736200151694,0.65809308,3676.9,3676.8,0.19]
[1736200152149,0.25312287,3676.9,3676.8,0.19]
[1736200152313,0.25312287,3676.9,3676.8,35.19]
[1736200157156,0.65844471,3676.9,3676.8,35.19]
[1736200159286,0.81,3677.0,3676.8,35.19]
[1736200159484,0.81,3677.0,3676.8,0.19]
[1736200159644,0.65832274,3676.9,3676.8,0.19]
[1736200159846,0.65832274,3676.9,3676.8,35.19]
[1736200164895,0.65832274,3676.9,3676.8,35.5881]
[1736200165189,0.25320105,3676.9,3676.8,38.87285]
[1736200165505,0.25320105,3676.9,3676.8,38.88035]
[1736200166554,0.25320105,3676.9,3676.8,41.88035]
[1736200166789,3.47131,3678.3,3676.8,41.88035]
[1736200166790,1.12424368,3678.1,3677.4,0.55]
[1736200167402,0.25337397,3678.0,3677.4,0.55]
[1736200167925,0.25337397,3678.0,3677.9,35.0]
[1736200168073,1.12424368,3678.1,3677.9,35.5881]
[1736200168274,1.12424368,3678.1,3677.9,0.5881]
[1736200168515,1.12924368,3678.4,3677.9,0.5881]
[1736200168811,1.12924368,3678.4,3678.3,35.0]
[1736200169317,1.38245905,3678.4,3678.3,35.0]
[1736200170221,0.25821537,3678.4,3678.3,35.0]
[1736200173319,2.97678537,3678.4,3678.3,35.0]
[1736200173511,3.78508537,3678.4,3678.3,35.0]
[1736200176442,2.97678537,3678.4,3678.3,35.0]
[1736200182253,0.25821537,3678.4,3678.3,35.0]
[1736200185325,0.005,3678.4,3678.3,35.0]
[1736200185825,0.25793151,3678.4,3678.3,35.0]
[1736200187066,0.25793151,3678.4,3678.3,35.3981]
[1736200187577,0.005,3678.4,3678.3,35.3981]
[1736200188746,0.005,3678.4,3678.3,35.9631]
[1736200189642,0.005,3678.4,3678.3,38.68174]
[1736200192967,0.005,3678.4,3678.3,38.87074]
[1736200194052,0.25840268,3678.4,3678.3,38.87074]
[1736200195382,0.25840268,3678.4,3678.3,36.1521]
[1736200196340,0.25840268,3678.4,3678.3,36.1371]
[1736200196654,0.25840268,3678.4,3678.3,35.189]
[1736200197469,0.25840268,3678.4,3678.3,35.0]
[1736200197783,0.25840268,3678.4,3678.3,35.189]
[1736200198389,0.25840268,3678.4,3678.3,35.0]
[1736200198390,2.86028686,3678.4,3678.3,35.0]
[1736200198548,3.68198686,3678.4,3678.3,35.0]
[1736200199067,0.25840268,3678.4,3678.3,35.0]
[1736200199790,0.66428126,3678.4,3678.3,35.0]
[1736200201414,0.66428126,3678.4,3678.3,35.3981]
[1736200202163,0.66428126,3678.4,3678.3,35.9631]
[1736200202966,0.25840268,3678.4,3678.3,35.9631]
[1736200204399,0.25840268,3678.4,3678.3,35.9481]
[1736200204608,0.25840268,3678.4,3678.3,35.0]
[1736200206916,2.97697268,3678.4,3678.3,35.0]
[1736200207119,3.88977563,3678.4,3678.3,35.0]
[1736200208415,2.97697268,3678.4,3678.3,35.0]
[1736200209886,3.38253159,3678.4,3678.3,35.0]
[1736200212536,2.71876,3678.2,3677.9,0.189]
[1736200212737,5.32071418,3678.1,3677.9,0.189]
[1736200213261,0.65896159,3678.0,3677.9,0.189]
[1736200213565,1.47576159,3678.0,3677.9,35.189]
[1736200214254,4.19462159,3678.0,3677.9,35.189]
[1736200214546,4.90825636,3678.0,3677.9,35.0]
[1736200216360,4.87426917,3678.0,3677.9,35.0]
[1736200216564,5.99851285,3678.0,3677.9,35.0]
[1736200219019,8.60039703,3678.0,3677.9,35.0]
[1736200219220,11.60039703,3678.0,3677.9,35.0]
[1736200220918,2.71953,3677.1,3677.0,0.189]
[1736200221120,5.32141418,3677.1,3677.0,0.189]
[1736200221629,3.26084577,3677.1,3677.0,0.189]
[1736200221848,3.26084577,3677.1,3677.0,35.189]
[1736200222438,0.65896159,3677.1,3677.0,35.5871]
[1736200223224,0.25340268,3677.1,3677.0,35.5871]
[1736200223939,0.65768345,3677.6,3677.1,0.55]
[1736200224145,0.65768345,3677.6,3677.2,0.3981]
[1736200224476,0.25340268,3677.5,3677.2,0.3981]
[1736200224622,0.25340268,3677.5,3677.3,0.38717]
[1736200225140,2.60188418,3677.4,3677.2,0.3981]
[1736200225544,2.60188418,3677.4,3677.3,35.0]
[1736200226446,3.25898703,3677.4,3677.3,35.0]
[1736200226980,0.65710285,3677.4,3677.3,35.0]
[1736200227980,0.25273186,3677.4,3677.3,35.0]
[1736200234792,0.65769907,3677.4,3677.3,35.0]
[1736200237023,3.25958325,3677.4,3677.3,35.0]
[1736200237228,6.76908322,3677.4,3677.3,35.0]
[1736200237437,7.41200157,3677.4,3677.3,35.0]
[1736200239147,4.69269157,3677.4,3676.9,0.189]
[1736200239304,2.71945,3677.3,3676.9,0.189]
[1736200240195,0.65769907,3677.2,3676.9,0.189]
[1736200240841,0.65769907,3677.1,3676.9,0.189]
[1736200241385,0.65769907,3677.0,3676.9,0.189]
[1736200242071,0.7742,3676.9,3676.3,0.565]
[1736200242276,0.7742,3676.9,3676.8,0.189]
[1736200243037,1.43189907,3676.9,3676.8,0.189]
[1736200243246,4.15157907,3676.9,3676.8,0.189]
[1736200243567,2.71975,3676.8,3676.6,0.189]
[1736200243767,5.35571389,3676.7,3676.6,0.189]
[1736200244469,6.01341296,3676.7,3676.6,0.189]
[1736200244676,5.97941325,3676.7,3676.6,0.189]
[1736200245178,3.25958325,3676.7,3676.6,0.189]
[1736200245342,0.65769907,3676.7,3676.6,0.189]
[1736200247473,3.37752907,3676.7,3676.6,0.189]
[1736200248241,0.65769907,3676.7,3676.6,0.189]
[1736200255172,0.65769907,3676.7,3676.1,0.3981]
[1736200255380,0.65769907,3676.7,3676.6,0.189]
[1736200255587,2.71976,3676.8,3676.6,0.189]
[1736200255889,2.60188418,3676.7,3676.6,0.189]
[1736200256286,3.48506,3676.6,3676.4,0.189]
[1736200256450,0.03400071,3676.5,3676.4,0.189]
[1736200256644,0.03400071,3676.5,3675.9,0.3981]
[1736200256880,0.03400071,3676.5,3676.0,0.189]
[1736200256881,2.60188418,3676.1,3676.0,0.189]
[1736200257647,5.97968066,3676.4,3676.0,0.189]
[1736200257873,0.65772648,3676.1,3676.0,0.189]
[1736200259993,6.73778066,3676.1,3676.0,0.189]
[1736200260294,6.73778066,3676.1,3676.0,35.0]
[1736200265008,6.08005418,3676.1,3676.0,35.0]
[1736200265610,6.73648596,3676.1,3676.0,35.0]
[1736200267579,5.97858596,3676.1,3676.0,35.0]
[1736200273447,6.99175136,3676.1,3676.0,35.0]
[1736200273652,7.77015136,3676.1,3676.0,35.0]
[1736200280619,6.75698596,3676.1,3676.0,35.0]
[1736200283024,5.32815506,3676.1,3676.0,35.0]
[1736200283220,5.36216145,3676.1,3676.0,35.0]
[1736200283781,5.32815506,3676.1,3676.0,35.0]
[1736200285827,2.72049,3675.8,3675.7,0.189]
[1736200286118,3.89354328,3675.8,3675.7,0.189]
[1736200286828,3.89354328,3675.8,3675.7,35.189]
[1736200287043,4.14601704,3675.8,3675.7,35.189]
[1736200287828,4.55184815,3675.8,3675.7,35.189]
[1736200292636,4.55184815,3675.8,3675.7,35.0]
[1736200293829,6.17800081,3675.8,3675.7,35.0]
[1736200295903,7.31087212,3675.8,3675.7,35.0]
[1736200297042,11.4839254,3675.8,3675.7,35.0]
[1736200297448,10.31087212,3675.8,3675.7,35.0]
[1736200297746,9.13781884,3675.8,3675.7,35.0]
[1736200297950,5.68471946,3675.8,3675.7,35.0]
[1736200298668,4.55184815,3675.8,3675.7,35.0]
[1736200301171,5.97833112,3675.8,3675.7,35.0]
[1736200302334,3.25784112,3675.8,3675.7,35.0]
[1736200304033,5.97833112,3675.8,3675.7,35.0]
[1736200304882,3.25784112,3675.8,3675.7,35.0]
[1736200307120,0.65830487,3675.8,3675.7,35.3981]
[1736200307281,0.65830487,3675.8,3675.7,38.69117]
[1736200307691,0.25247376,3675.8,3675.7,38.69117]
[1736200307894,0.25247376,3675.8,3675.7,41.69117]
[1736200308298,1.13428417,3676.0,3675.9,6.69102]
[1736200308996,1.13428417,3676.0,3675.9,41.69102]
[1736200309200,1.69930697,3676.2,3675.9,41.69102]
[1736200309201,2.59953625,3676.9,3676.1,0.0075]
[1736200309388,2.59953625,3676.9,3676.2,0.3981]
[1736200309794,0.25325677,3676.8,3676.2,0.3981]
[1736200309995,0.25325677,3676.8,3676.3,0.55]
[1736200310308,0.25325677,3676.8,3676.7,35.0]
[1736200310517,2.59953625,3676.9,3676.7,35.0]
[1736200310887,0.25316941,3676.8,3676.7,35.0]
[1736200312471,0.25316941,3676.8,3676.7,35.3981]
[1736200313525,0.25316941,3676.8,3676.7,35.9631]
[1736200314204,5.31883625,3677.5,3676.8,0.55]
[1736200314800,5.31883625,3677.5,3677.4,35.0]
[1736200315001,2.59953625,3677.5,3677.4,35.0]
[1736200315693,2.85225342,3677.5,3677.4,35.0]
[1736200318174,5.57148342,3677.5,3677.4,35.0]
[1736200320541,6.20431176,3677.5,3677.4,35.0]
[1736200320848,7.01991176,3677.5,3677.4,35.0]
[1736200326172,6.20431176,3677.5,3677.4,35.0]
[1736200328689,5.57148342,3677.5,3677.4,35.0]
[1736200335092,5.31635949,3677.5,3677.4,35.0]
[1736200335305,6.12665949,3677.5,3677.4,35.0]
[1736200335452,0.8103,3677.0,3676.0,0.3981]
[1736200335660,1.17220616,3676.2,3676.1,0.189]
[1736200335871,1.17220616,3676.4,3676.1,0.189]
[1736200336200,1.17220616,3676.4,3676.1,0.36169003]
[1736200336500,3.89225616,3676.4,3676.3,35.0]
[1736200337054,0.25348896,3676.4,3676.3,35.0]
[1736200341302,0.65924656,3676.4,3676.3,35.0]
[1736200342501,0.25348896,3676.4,3676.3,35.0]
[1736200343220,2.97353896,3676.4,3676.3,35.0]
[1736200344689,0.25348896,3676.4,3676.3,35.0]
[1736200347841,5.60561165,3676.4,3676.3,35.0]
[1736200347990,5.57161212,3676.4,3676.3,35.0]
[1736200349312,6.48292933,3676.4,3676.3,35.0]
[1736200351326,5.57161212,3676.4,3676.3,35.0]
[1736200355045,3.74903896,3676.4,3676.3,35.0]
[1736200355245,3.78304303,3676.4,3676.3,35.0]
[1736200358135,3.74903896,3676.4,3676.3,35.0]
[1736200359005,4.92188237,3676.4,3676.3,35.0]
[1736200359347,6.02518249,3676.4,3676.3,35.0]
[1736200362453,5.24968249,3676.4,3676.3,35.0]
[1736200364058,6.4225259,3676.4,3676.3,35.0]
[1736200364506,6.16903694,3676.4,3676.3,35.0]
[1736200364706,6.4224817,3676.4,3676.3,35.0]
[1736200365857,7.1728817,3676.4,3676.3,35.0]
[1736200367910,2.72047,3675.9,3675.6,0.189]
[1736200368107,1.17284341,3675.7,3675.6,0.189]
[1736200368519,1.83190664,3675.7,3675.6,0.5871]
[1736200368811,1.83190664,3675.7,3675.6,35.5871]
[1736200370162,1.83190664,3675.7,3675.6,36.61215393]
[1736200370380,1.83190664,3675.7,3675.6,35.5871]
[1736200374059,4.55247664,3675.7,3675.6,35.5871]
[1736200374434,1.83190664,3675.7,3675.6,35.5871]
[1736200376278,0.65906323,3675.7,3675.6,35.5871]
[1736200381609,2.72043,3675.9,3675.6,35.5871]
[1736200381911,2.72043,3675.9,3675.6,0.5871]
[1736200382054,0.66000689,3675.7,3675.6,0.5871]
[1736200382258,0.66000689,3675.7,3675.6,35.5871]
[1736200382513,2.72043,3675.9,3675.6,35.5871]
[1736200382879,0.6600742,3675.7,3675.6,0.5871]
[1736200383358,0.6600742,3675.7,3675.6,35.5871]
[1736200385115,1.83291761,3675.7,3675.6,37.94476458]
[1736200385403,4.55348761,3675.7,3675.6,37.94476458]
[1736200385611,4.1472881,3675.7,3675.6,37.94476458]
[1736200386300,1.4267181,3675.7,3675.6,35.5871]
[1736200389228,1.4267181,3675.7,3675.6,35.189]
[1736200390442,4.1472881,3675.7,3675.6,35.189]
[1736200392616,4.1472881,3675.7,3675.6,36.13284967]
[1736200393355,0.25387469,3675.7,3675.6,36.13284967]
[1736200394256,2.97444469,3675.7,3675.6,36.13284967]
[1736200396157,3.80336804,3675.7,3675.6,36.13284967]
[1736200397217,4.97621145,3675.7,3675.6,36.13284967]
[1736200398258,4.55329137,3675.7,3675.6,36.13284967]
[1736200398757,4.97621145,3675.7,3675.6,36.13284967]
[1736200399746,5.66412101,3675.7,3675.6,35.94384967]
[1736200399934,6.42772101,3675.7,3675.6,35.94384967]
[1736200400129,6.00480093,3675.7,3675.6,35.0]
[1736200400461,6.00480093,3675.7,3675.3,1.13980031]
[1736200400462,2.72079,3675.4,3675.3,1.13980031]
[1736200400755,3.89363341,3675.4,3675.3,1.13980031]
[1736200401456,4.1475081,3675.4,3675.3,36.13980031]
[1736200401652,0.25387469,3675.4,3675.3,36.13980031]
[1736200401963,0.25387469,3675.4,3675.3,35.0]
[1736200402325,1.17284341,3675.5,3675.3,35.0]
[1736200402717,1.17284341,3675.5,3675.1,0.55]
[1736200402917,1.17284341,3675.5,3675.3,2.36033915]
[1736200403115,1.17284341,3675.5,3675.4,35.0]
[1736200405432,1.8324697,3675.5,3675.4,35.0]
[1736200407469,1.7724697,3675.5,3675.4,35.0]
[1736200408355,1.7724697,3675.5,3675.4,35.94398128]
[1736200409273,1.7724697,3675.5,3675.4,35.0]
[1736200413338,4.4931797,3675.5,3675.4,35.0]
[1736200418429,4.08725583,3675.5,3675.4,35.0]
[1736200425955,0.25370242,3675.5,3675.4,35.0]
[1736200426157,0.25370242,3675.5,3675.4,35.3981]
[1736200431591,0.66020947,3675.5,3675.4,35.3981]
[1736200431764,0.66020947,3675.5,3675.4,36.34212537]
[1736200433582,0.66020947,3675.5,3675.4,36.53112537]
[1736200433908,0.25370242,3675.5,3675.4,36.53112537]
[1736200434660,0.25370242,3675.5,3675.4,38.5122314]
[1736200436307,0.25370242,3675.5,3675.4,44.2405214]
[1736200436602,2.31047785,3676.3,3675.7,0.015]
[1736200436816,1.13763444,3676.3,3675.9,0.015]
[1736200436990,1.13763444,3676.3,3675.9,0.565]
[1736200437367,0.25360771,3676.2,3675.9,0.565]
[1736200437825,1.17284341,3676.3,3676.1,35.0]
[1736200438320,1.17284341,3676.3,3675.9,1.7064201]
[1736200438823,1.13763444,3676.7,3676.3,0.3981]
[1736200438975,2.31047785,3676.7,3676.5,0.55]
[1736200439172,1.17284341,3676.7,3676.5,0.55]
[1736200439402,0.25340583,3676.6,3676.5,0.55]
[1736200439610,0.25340583,3676.6,3676.5,35.55]
[1736200442198,1.42624924,3676.6,3676.5,35.55]
[1736200445143,1.42624924,3676.6,3676.5,35.0]
[1736200446253,4.14614924,3676.6,3676.5,35.0]
[1736200448542,5.35906275,3676.6,3676.5,35.0]
[1736200450262,5.32506396,3676.6,3676.5,35.0]
[1736200463065,4.56416396,3676.6,3676.5,35.0]
[1736200466981,4.14614924,3676.6,3676.5,35.0]
[1736200467277,4.55175646,3676.6,3676.5,35.0]
[1736200469577,0.65901305,3676.6,3676.5,35.9481]
[1736200470463,0.25340583,3676.6,3676.5,35.9481]
[1736200477085,1.42624924,3676.6,3676.5,35.9481]
[1736200480199,1.42624924,3676.6,3676.5,35.3981]
[1736200480576,4.14614924,3676.6,3676.5,35.0]
[1736200481198,0.25340583,3676.6,3676.5,35.0]
[1736200481805,0.25340583,3676.6,3676.5,35.189]
[1736200482109,1.42624924,3676.6,3676.5,35.189]
[1736200488424,4.14614924,3676.6,3676.5,35.189]
[1736200488587,4.95274924,3676.6,3676.5,35.0]
[1736200488786,5.71999516,3676.6,3676.5,35.0]
[1736200490611,2.72034,3676.1,3676.0,0.189]
[1736200491533,3.37954597,3676.1,3676.0,35.189]
[1736200493422,2.97374583,3676.1,3676.0,35.189]
[1736200493628,0.25340583,3676.1,3676.0,35.189]
[1736200495249,1.42624924,3676.1,3676.0,35.189]
[1736200497423,4.14651924,3676.1,3676.0,35.189]
[1736200497820,1.42624924,3676.1,3676.0,35.189]
[1736200501970,4.14651924,3676.1,3676.0,35.189]
[1736200502265,4.14651924,3676.1,3676.0,35.0]
[1736200503378,5.69106145,3676.1,3676.0,35.0]
[1736200504125,8.69106145,3676.1,3676.0,35.0]
[1736200504775,3.53599,3675.4,3675.3,1.1414201]
[1736200504930,4.70883341,3675.4,3675.3,1.1414201]
[1736200505333,4.70883341,3675.4,3675.2,1.90019217]
[1736200505334,2.72086,3675.3,3675.2,0.188]
[1736200505760,2.72086,3675.3,3675.2,35.188]
[1736200505950,2.97426583,3675.3,3675.2,35.188]
[1736200508396,4.95282004,3675.3,3675.2,35.0]
[1736200508543,4.95282004,3675.3,3674.3,1.1414201]
[1736200508893,3.89437341,3674.4,3674.3,1.1414201]
[1736200509197,0.03402027,3674.5,3674.3,1.1414201]
[1736200509356,1.17284341,3674.6,3674.4,0.3981]
[1736200509562,1.17284341,3674.6,3674.5,35.0]
[1736200510078,1.4257595,3674.6,3674.5,35.0]
[1736200513114,0.25291609,3674.6,3674.5,35.0]
[1736200514149,1.17284341,3674.8,3674.5,35.0]
[1736200514354,1.17284341,3674.8,3674.4,0.3981]
[1736200514703,1.17284341,3674.8,3674.7,35.0]
[1736200514902,4.67657341,3674.8,3674.7,35.0]
[1736200515799,5.33366812,3674.8,3674.7,35.0]
[1736200517414,5.98772081,3674.8,3674.7,35.0]
[1736200522847,6.00062081,3674.8,3674.7,35.0]
[1736200531839,2.72171,3674.2,3673.8,0.188]
[1736200532055,1.17284341,3674.0,3673.8,0.188]
[1736200532473,0.25272873,3673.9,3673.8,0.188]
[1736200532835,0.25272873,3673.9,3673.8,35.188]
[1736200533254,0.25272873,3673.9,3673.8,35.5861]
[1736200533450,0.25272873,3673.9,3673.8,36.1361]
[1736200533654,0.25272873,3674.1,3673.9,0.3981]
[1736200534187,0.25272873,3674.0,3673.9,0.3981]
[1736200534734,0.25272873,3674.0,3673.9,35.3981]
[1736200542890,0.25272873,3674.0,3673.9,35.0]
[1736200545611,0.65843711,3674.0,3673.9,35.0]
[1736200549277,3.38025711,3674.0,3673.9,35.0]
[1736200552409,4.58712316,3674.0,3673.9,35.0]
[1736200552739,5.40332316,3674.0,3673.9,35.0]
[1736200552944,6.33310382,3674.0,3673.9,35.0]
[1736200553246,6.29908118,3674.0,3673.9,35.0]
[1736200553749,5.12623777,3674.0,3673.9,35.0]
[1736200553918,6.33310561,3674.0,3673.9,35.0]
[1736200554097,6.29908118,3674.0,3673.9,35.0]
[1736200555497,6.29908118,3674.0,3673.4,0.188]
[1736200555716,2.72236,3673.3,3673.2,0.188]
[1736200555916,3.89520341,3673.3,3673.2,0.188]
[1736200556117,3.89520341,3673.3,3673.1,1.1414201]
[1736200556322,2.72242,3673.2,3673.1,1.1414201]
[1736200556556,2.72242,3673.2,3673.1,36.1414201]
[1736200557355,3.38085711,3673.2,3673.1,36.1414201]
[1736200558128,3.38085711,3673.2,3673.1,35.0]
[1736200559538,3.41488808,3673.2,3673.1,35.0]
[1736200560351,4.22888808,3673.2,3673.1,35.0]
[1736200560719,5.04128523,3673.2,3673.1,35.0]
[1736200561547,5.00725426,3673.2,3673.1,35.0]
[1736200563247,4.19485711,3673.2,3673.1,35.0]
[1736200563450,3.38085711,3673.2,3673.1,35.0]
[1736200570085,4.15125711,3673.2,3673.1,35.0]
[1736200577786,5.35813346,3673.2,3673.1,35.0]
[1736200578186,4.18529005,3673.2,3673.1,35.0]
[1736200578393,6.22022515,3673.2,3673.1,35.0]
[1736200578551,6.18619221,3673.2,3673.1,35.0]
[1736200580604,2.72286,3672.6,3672.2,0.5861]
[1736200580908,1.17284341,3672.3,3672.2,0.5861]
[1736200581072,1.17284341,3672.3,3672.2,0.3981]
[1736200581494,1.42557214,3672.3,3672.2,0.3981]
[1736200581805,1.42557214,3672.3,3672.2,35.3981]
[1736200582503,1.42557214,3672.3,3672.2,35.5861]
[1736200584769,4.14865214,3672.3,3672.2,35.5861]
[1736200586393,4.14865214,3672.3,3672.2,35.3981]
[1736200589396,4.14865214,3672.3,3672.2,35.0]
[1736200594245,4.55414992,3672.3,3672.2,35.0]
[1736200609468,4.14865214,3672.3,3672.2,35.0]
[1736200611336,2.72353,3671.7,3671.6,1.1414201]
[1736200611764,3.89637341,3671.7,3671.6,1.1414201]
[1736200612128,2.72353,3671.7,3671.6,1.1414201]
[1736200612461,2.72353,3671.7,3671.6,36.1414201]
[1736200612462,4.14910214,3671.7,3671.6,36.1414201]
[1736200612953,4.14910214,3671.7,3671.6,35.0]
[1736200613359,7.87379788,3671.7,3671.6,35.0]
[1736200613532,7.8397537,3671.7,3671.6,35.0]
[1736200614576,7.8397537,3671.7,3670.9,0.188]
[1736200614775,3.89689341,3671.0,3670.9,0.188]
[1736200615078,2.72427,3670.7,3670.6,1.1414201]
[1736200615253,5.06995682,3670.7,3670.6,1.1414201]
[1736200615656,5.06995682,3670.7,3670.6,36.1414201]
[1736200615979,5.06995682,3670.7,3670.6,35.0]
[1736200616148,5.32268555,3670.7,3670.6,35.0]
[1736200616853,4.14984214,3670.7,3670.6,35.0]
[1736200617254,0.25272873,3670.7,3670.6,35.0]
[1736200617453,0.25272873,3670.7,3670.6,35.5725]
[1736200617642,1.13570462,3671.4,3670.7,0.5725]
[1736200617953,1.13570462,3671.4,3670.7,3.29677]
[1736200618481,1.13570462,3671.4,3671.3,35.565]
[1736200618678,1.17284341,3671.7,3671.3,35.753]
[1736200618846,1.17284341,3671.7,3671.3,0.753]
[1736200619042,0.25305715,3671.6,3671.3,0.753]
[1736200619347,0.25305715,3671.6,3671.5,35.0]
[1736200620066,0.25305715,3671.6,3671.5,35.5725]